bitfinex-derivatives/quotes_ETHF0:USTF0_20251025
["timestamp","ask_amount","ask_price","bid_price","bid_amount"]
[1761398446477,1.4012,3940.8,3940.7,12.3068]
[1761398446774,1.0061,3940.8,3940.7,12.3068]
[1761398446977,0.5716,3940.8,3940.7,12.3068]
[1761398449071,0.2726,3941.0,3940.8,0.45669]
[1761398449072,0.8442,3941.0,3940.8,0.45669]
[1761398449377,1.0061,3940.9,3940.8,0.45669]
[1761398449573,1.0061,3940.9,3940.8,9.55169]
[1761398449984,0.5716,3940.9,3940.8,9.55169]
[1761398452182,0.8442,3941.0,3940.8,9.55169]
[1761398452680,0.2726,3941.0,3940.8,9.55169]
[1761398452869,0.8442,3941.0,3940.8,9.55169]
[1761398453071,0.5716,3940.9,3940.8,9.55169]
[1761398453777,0.2726,3941.0,3940.8,9.55169]
[1761398454184,0.8442,3941.0,3940.9,31.934]
[1761398456677,0.2726,3941.0,3940.9,31.934]
[1761398457076,0.2726,3941.0,3940.9,31.926]
[1761398457270,0.8442,3941.0,3940.9,31.926]
[1761398460882,0.2726,3941.0,3940.9,31.921]
[1761398461487,0.7979,3941.0,3940.9,31.921]
[1761398462085,0.52780188,3941.3,3941.2,0.45664]
[1761398462293,0.52780188,3941.3,3941.2,12.73944]
[1761398462788,0.00250188,3941.3,3941.2,12.73944]
[1761398463287,0.2753,3941.5,3941.4,0.45662]
[1761398463691,0.8006,3941.5,3941.4,0.45662]
[1761398464378,0.80376566,3941.5,3941.4,0.45662]
[1761398467487,0.80376566,3941.5,3941.4,1.3644443]
[1761398470290,0.80376566,3941.5,3941.4,0.45662]
[1761398471687,0.80376566,3941.5,3941.4,1.82209028]
[1761398471881,0.2753,3942.0,3941.9,0.45656]
[1761398472087,0.2753,3942.0,3941.9,12.72436]
[1761398472387,0.2753,3942.0,3941.9,13.63403547]
[1761398472994,0.27712844,3942.0,3941.9,13.63646983]
[1761398473193,0.27712844,3942.0,3941.9,12.72679436]
[1761398473894,0.83562844,3942.0,3941.9,12.72679436]
[1761398475892,1.21052844,3942.0,3941.9,12.72679436]
[1761398477395,0.83562844,3942.0,3941.9,12.72679436]
[1761398478793,0.56032844,3942.0,3941.9,12.72679436]
[1761398478991,0.3749,3943.0,3942.9,1.73205]
[1761398479191,0.9411,3943.0,3942.9,9.7833]
[1761398479990,0.94365692,3943.0,3942.9,9.7833]
[1761398480896,1.50215692,3943.0,3942.9,9.7833]
[1761398482292,1.50215692,3943.0,3942.9,0.7333]
[1761398482496,1.50215692,3943.0,3942.9,9.7813]
[1761398484093,0.5585,3942.9,3942.8,3.2078]
[1761398484288,1.2743,3942.9,3942.8,12.2558]
[1761398487697,1.2743,3942.9,3942.8,12.6289]
[1761398488598,1.2743,3942.9,3942.8,13.5314]
[1761398489201,1.2743,3942.9,3942.8,12.9891]
[1761398489800,1.2743,3942.9,3942.8,13.5314]
[1761398491995,0.00255692,3943.0,3942.9,1.37185]
[1761398492203,0.56105692,3943.0,3942.9,1.73205]
[1761398492397,0.93595692,3943.0,3942.9,1.73205]
[1761398494604,1.50215692,3943.0,3942.9,10.77005]
[1761398497296,0.00255692,3943.0,3942.9,10.77005]
[1761398497905,0.00255692,3943.0,3942.9,12.13438851]
[1761398500212,0.00255692,3943.0,3942.9,10.77005]
[1761398504606,0.4982,3943.6,3943.5,0.45637]
[1761398504807,0.366,3944.0,3943.9,1.65073]
[1761398505008,0.366,3944.0,3943.9,10.67673]
[1761398505310,0.8642,3944.0,3943.9,10.67673]
[1761398505713,0.00213597,3944.0,3943.9,13.88453]
[1761398505899,0.4982,3944.3,3944.2,1.6507]
[1761398506104,1.2133,3944.9,3944.8,0.6916]
[1761398506413,1.2133,3944.9,3944.8,10.2194]
[1761398506806,1.21542544,3944.9,3944.8,10.22232153]
[1761398510018,1.21542544,3944.9,3944.8,9.71952153]
[1761398510711,1.21542544,3944.9,3944.8,0.00292153]
[1761398511012,1.21542544,3944.9,3944.8,9.02292153]
[1761398511404,1.21542544,3944.9,3944.8,0.00292153]
[1761398511605,1.21542544,3944.9,3944.8,9.36362153]
[1761398512209,1.21542544,3944.9,3944.8,9.36262153]
[1761398512614,1.21542544,3944.9,3944.8,0.00292153]
[1761398512808,1.21542544,3944.9,3944.8,9.02192153]
[1761398514816,4.42322544,3944.9,3944.8,9.02192153]
[1761398517716,12.42322544,3944.9,3944.8,9.02192153]
[1761398518511,12.42322544,3944.9,3944.8,9.01992153]
[1761398518912,12.42322544,3944.9,3944.8,0.00292153]
[1761398519220,12.42322544,3944.9,3944.8,4.86992153]
[1761398519613,12.42322544,3944.9,3944.8,0.00292153]
[1761398520120,12.42322544,3944.9,3944.8,4.86792153]
[1761398520314,12.42322544,3944.9,3944.8,0.00292153]
[1761398520517,12.42322544,3944.9,3944.8,9.01592153]
[1761398520818,12.42322544,3944.9,3944.8,0.00292153]
[1761398521218,12.42322544,3944.9,3944.8,4.86392153]
[1761398522220,9.21542544,3944.9,3944.8,4.86392153]
[1761398522422,12.42322544,3944.9,3944.8,4.86392153]
[1761398523323,12.42322544,3944.9,3944.8,5.18322153]
[1761398523621,4.42322544,3944.9,3944.8,5.18322153]
[1761398523815,4.42322544,3944.9,3944.8,9.01292153]
[1761398526920,4.42322544,3944.9,3944.8,0.00292153]
[1761398527624,46.1284602,3944.9,3944.8,0.00292153]
[1761398527824,46.58107758,3944.9,3944.8,0.00292153]
[1761398529021,45.22322544,3944.9,3944.8,0.00292153]
[1761398530025,5.32930085,3944.9,3944.8,0.00292153]
[1761398530235,4.42322544,3944.9,3944.8,0.00292153]
[1761398531739,1.21542544,3944.9,3944.8,0.00292153]
[1761398531939,4.42322544,3944.9,3944.8,0.32022153]
[1761398532831,4.42322544,3944.9,3944.8,0.00292153]
[1761398533129,5.32963373,3944.9,3944.8,0.00292153]
[1761398539045,4.42322544,3944.9,3944.8,0.00292153]
[1761398539447,5.33054862,3944.9,3944.8,0.00292153]
[1761398539650,4.42322544,3944.9,3944.8,0.00292153]
[1761398541350,4.42322544,3944.9,3944.8,0.62222153]
[1761398541544,4.42322544,3944.9,3944.8,1.11302153]
[1761398541739,4.42322544,3944.9,3944.8,0.62222153]
[1761398542748,4.42322544,3944.9,3944.8,0.00292153]
[1761398542939,5.33079176,3944.9,3944.8,0.00292153]
[1761398543338,4.42322544,3944.9,3944.8,0.00292153]
[1761398544740,5.78107758,3944.9,3944.8,0.00292153]
[1761398544942,4.42322544,3944.9,3944.8,0.00292153]
[1761398547541,1.1452,3943.6,3943.5,1.22764541]
[1761398547945,1.1452,3943.6,3943.5,0.6193]
[1761398548150,1.1452,3943.6,3943.5,1.1101]
[1761398548345,4.353,3943.6,3943.5,0.3173]
[1761398548542,4.353,3943.6,3943.5,0.0020469]
[1761398548743,4.353,3943.6,3943.5,0.3193469]
[1761398548944,4.353,3943.6,3943.5,0.0020469]
[1761398549244,4.353,3943.6,3943.5,0.3193469]
[1761398550347,4.0276,3943.6,3943.5,1.1121469]
[1761398552049,3.2078,3943.6,3943.5,1.1121469]
[1761398552253,0.1957,3944.5,3943.5,1.1121469]
[1761398552254,0.4789,3944.1,3944.0,0.7928]
[1761398552451,3.2078,3944.2,3944.1,0.4908]
[1761398552655,3.6867,3944.2,3944.1,0.4908]
[1761398552855,3.6867,3944.2,3944.1,1.1101]
[1761398553048,4.0276,3944.2,3944.1,1.1101]
[1761398553244,4.0276,3944.2,3944.1,9.6193]
[1761398553245,4.353,3944.2,3944.1,9.6193]
[1761398554349,4.353,3944.2,3944.1,10.1101]
[1761398554549,4.0276,3944.2,3944.1,10.1101]
[1761398554752,3.2078,3944.2,3944.1,10.1101]
[1761398556247,0.4789,3944.4,3944.3,1.1101]
[1761398557448,0.8198,3944.4,3944.3,1.1101]
[1761398558557,1.1452,3944.4,3944.3,10.1101]
[1761398559060,1.1452,3944.4,3944.3,10.1081]
[1761398560452,0.4161,3944.3,3944.0,0.2992]
[1761398560655,1.0182,3944.1,3944.0,0.2992]
[1761398560856,1.0182,3944.1,3944.0,9.2952]
[1761398561055,1.0182,3944.1,3944.0,10.0021]
[1761398561257,1.0182,3944.1,3944.0,1.0061]
[1761398561560,1.0182,3944.1,3944.0,10.0021]
[1761398562257,1.0182,3944.1,3944.0,9.5948]
[1761398563760,1.0182,3944.1,3943.7,0.4073]
[1761398563953,1.0182,3943.6,3943.5,0.6008469]
[1761398564154,1.0182,3943.6,3943.5,8.7391469]
[1761398564354,0.7349,3943.6,3943.5,8.7391469]
[1761398573768,1.0182,3943.6,3943.5,8.7391469]
[1761398574164,1.0182,3943.6,3943.5,8.3318469]
[1761398574362,1.0182,3943.6,3943.5,9.5958469]
[1761398575668,1.0182,3943.6,3943.5,10.0031469]
[1761398576071,1.0182,3943.6,3943.5,9.5958469]
[1761398576270,1.0182,3943.6,3943.5,0.3012469]
[1761398576470,1.0182,3943.6,3943.5,8.4992469]
[1761398576674,1.0182,3943.6,3943.5,0.3012469]
[1761398576870,1.0182,3943.6,3943.5,7.6812469]
[1761398579077,1.0182,3943.6,3943.5,9.2962469]
[1761398579275,1.0182,3943.6,3943.5,0.3012469]
[1761398579476,1.0182,3943.6,3943.5,7.9798469]
[1761398579780,1.0182,3943.6,3943.5,1.0021469]
[1761398579965,1.0182,3943.6,3943.5,9.9971469]
[1761398583679,0.4161,3943.6,3943.5,9.9971469]
[1761398584377,0.4058,3943.7,3943.6,0.6655]
[1761398584581,3.6136,3943.8,3943.7,0.4013]
[1761398584778,3.6136,3943.8,3943.7,0.9403]
[1761398585176,3.6136,3943.8,3943.7,9.9353]
[1761398585382,3.8724,3943.8,3943.7,9.9353]
[1761398586090,0.6646,3943.8,3943.7,9.9353]
[1761398587778,0.6646,3943.8,3943.7,0.9403]
[1761398587979,0.6646,3943.8,3943.7,9.9353]
[1761398588882,0.4058,3943.8,3943.7,9.9353]
[1761398589187,3.2078,3943.9,3943.8,0.9007]
[1761398589486,3.5888,3943.9,3943.8,9.8947]
[1761398591287,3.2078,3943.9,3943.8,9.8947]
[1761398592290,3.5888,3943.9,3943.8,9.8947]
[1761398592889,3.8482,3943.9,3943.8,9.8947]
[1761398593598,3.5888,3943.9,3943.8,9.8947]
[1761398593891,3.2078,3943.9,3943.8,9.8947]
[1761398594599,3.5888,3943.9,3943.8,9.8947]
[1761398595498,0.381,3943.9,3943.8,9.8947]
[1761398596297,0.381,3944.2,3944.1,0.9007]
[1761398596598,0.381,3944.2,3944.1,9.8947]
[1761398597896,0.6404,3944.2,3944.1,9.8947]
[1761398603094,0.381,3944.1,3943.5,1.3693573]
[1761398603301,0.6404,3943.8,3943.7,0.9007]
[1761398605698,0.381,3943.8,3943.7,0.9007]
[1761398607706,0.381,3943.8,3943.7,9.8937]
[1761398611105,0.381,3943.8,3943.7,0.9007]
[1761398611305,0.381,3943.8,3943.7,9.8927]
[1761398615102,0.381,3944.0,3943.9,0.9007]
[1761398615302,0.381,3944.0,3943.9,9.8927]
[1761398616009,3.2078,3944.1,3944.0,0.9007]
[1761398616308,0.381,3944.3,3944.2,0.5236]
[1761398616503,0.381,3944.3,3944.2,9.8927]
[1761398618106,0.359,3944.4,3944.3,0.7966]
[1761398620808,0.6141,3944.4,3944.3,0.7966]
[1761398621607,0.8561,3944.4,3944.3,0.7966]
[1761398631515,0.8561,3944.4,3944.3,0.4974]
[1761398633923,0.8561,3944.4,3944.3,0.7966]
[1761398637626,4.0639,3944.4,3944.3,0.7966]
[1761398641333,4.0639,3944.4,3944.3,0.4974]
[1761398642125,4.0639,3944.4,3944.3,0.7699]
[1761398642834,3.8219,3944.4,3944.3,0.7699]
[1761398643336,3.2078,3944.4,3944.3,0.7699]
[1761398644430,3.2078,3944.4,3944.3,1.6808204]
[1761398644630,3.2078,3944.4,3944.3,0.7699]
[1761398646132,3.2078,3944.4,3944.3,1.68195142]
[1761398646935,0.5513,3944.8,3944.7,0.7078]
[1761398647139,0.5513,3944.8,3944.7,9.6948]
[1761398647832,0.3264,3944.8,3944.7,9.6948]
[1761398648030,0.00212544,3944.9,3944.8,0.7366]
[1761398648229,0.80372544,3944.9,3944.8,0.2351]
[1761398648537,0.8016,3944.7,3944.6,0.4641]
[1761398648744,0.8016,3944.7,3944.6,9.7226]
[1761398648745,0.5832,3944.7,3944.6,9.7226]
[1761398649041,0.3507,3944.7,3944.6,9.7226]
[1761398650534,0.5832,3944.7,3944.6,9.7226]
[1761398650735,0.8016,3944.7,3944.6,9.4491]
[1761398651028,0.8016,3944.7,3944.6,9.7216]
[1761398651029,0.3507,3944.7,3944.6,9.7216]
[1761398651233,0.3507,3944.7,3944.6,0.7366]
[1761398651433,0.5832,3944.7,3944.6,9.7216]
[1761398652442,0.5832,3944.7,3944.6,0.4641]
[1761398652443,0.8016,3944.7,3944.6,0.4641]
[1761398652635,0.8016,3944.7,3944.6,0.2351]
[1761398652840,0.8016,3944.7,3944.6,9.2201]
[1761398653143,0.8016,3944.7,3944.6,9.4491]
[1761398654141,0.8016,3944.7,3944.6,9.7216]
[1761398654848,0.8016,3944.7,3944.6,0.7366]
[1761398655048,0.8016,3944.7,3944.6,9.7206]
[1761398657751,0.8016,3944.7,3944.6,0.7366]
[1761398657945,0.8016,3944.7,3944.6,9.4481]
[1761398658145,0.8016,3944.7,3944.6,9.7206]
[1761398659151,0.5832,3944.7,3944.6,9.7206]
[1761398659339,0.8016,3944.7,3944.6,0.4641]
[1761398659539,0.8016,3944.3,3944.2,4.11977889]
[1761398659748,0.8016,3944.3,3944.2,12.4259]
[1761398660341,0.8016,3944.3,3944.2,12.6549]
[1761398661651,0.8016,3944.3,3944.2,9.4471]
[1761398661952,0.8016,3944.3,3944.2,9.7196]
[1761398662948,0.8016,3944.3,3944.2,10.63157889]
[1761398663453,0.5832,3944.3,3944.2,10.63157889]
[1761398664545,0.3507,3944.3,3944.2,10.63157889]
[1761398664749,0.5832,3944.3,3944.2,10.63157889]
[1761398665351,0.5832,3944.3,3944.2,10.63057889]
[1761398668355,0.5832,3944.3,3944.2,9.7186]
[1761398670553,0.3507,3944.3,3944.2,9.7186]
[1761398671754,0.3507,3944.3,3944.2,0.7366]
[1761398671949,0.3507,3944.3,3944.2,9.7176]
[1761398675451,0.3507,3944.4,3944.3,0.7366]
[1761398675753,0.8016,3944.8,3944.7,0.4641]
[1761398675953,0.8016,3944.8,3944.7,9.4451]
[1761398676748,0.8016,3944.8,3944.7,0.4641]
[1761398676943,0.8016,3944.8,3944.7,8.5561]
[1761398677357,0.8016,3944.8,3944.7,8.8286]
[1761398678157,0.8016,3944.8,3944.7,9.7166]
[1761398683854,0.3507,3944.8,3944.7,9.7166]
[1761398684059,3.54222544,3944.9,3944.7,9.90035]
[1761398684256,0.4731,3944.5,3944.4,0.91211127]
[1761398684462,0.7853,3944.1,3944.0,1.13461127]
[1761398684658,0.7853,3943.9,3943.8,1.13461127]
[1761398684958,0.7853,3943.9,3943.8,10.11361127]
[1761398685159,0.7853,3943.9,3943.8,9.2015]
[1761398685861,0.7853,3943.9,3943.8,9.4231]
[1761398687662,0.5683,3943.9,3943.8,9.6949]
[1761398688458,0.7853,3943.9,3943.8,9.4231]
[1761398691459,0.5683,3943.9,3943.8,9.6949]
[1761398692065,0.7853,3943.9,3943.8,9.6949]
[1761398693860,0.3323,3943.9,3943.8,9.6949]
[1761398694869,0.5683,3943.9,3943.8,9.6949]
[1761398698168,0.7853,3943.9,3943.8,0.2225]
[1761398698356,0.7853,3943.9,3943.8,9.2005]
[1761398698562,0.5683,3943.9,3943.8,9.6939]
[1761398700670,0.7853,3943.9,3943.8,0.4441]
[1761398700866,0.7853,3943.9,3943.8,9.4221]
[1761398703674,0.3439,3943.8,3943.5,0.9036369]
[1761398703866,0.7975,3943.7,3943.6,9.2081]
[1761398704061,0.7975,3943.7,3943.6,0.2311]
[1761398704370,0.7975,3943.7,3943.6,9.4222]
[1761398709072,0.7886,3943.6,3943.5,0.0020469]
[1761398709259,3.9964,3943.6,3943.5,8.9790469]
[1761398709770,3.9964,3943.6,3943.5,0.0020469]
[1761398712673,3.9964,3943.6,3943.5,0.2373469]
[1761398714078,3.9964,3943.6,3943.5,0.7452469]
[1761398714576,3.9964,3943.6,3943.5,0.4728469]
[1761398716163,3.5526,3943.6,3943.5,0.7452469]
[1761398716369,3.7778,3943.6,3943.5,0.7452469]
[1761398716778,3.9964,3943.6,3943.5,0.7452469]
[1761398716974,3.9964,3943.6,3943.5,0.4728469]
[1761398725378,3.9964,3943.6,3943.5,0.0020469]
[1761398737283,4.90353168,3943.6,3943.5,0.0020469]
[1761398739490,3.9964,3943.6,3943.5,0.0020469]
[1761398739891,3.9964,3943.6,3942.8,3.842]
[1761398739892,3.6516,3943.6,3942.8,3.842]
[1761398740097,3.9955,3942.9,3942.8,3.842]
[1761398740992,3.9955,3942.9,3942.8,3.84394443]
[1761398741192,3.9955,3942.9,3942.8,4.05924443]
[1761398742797,3.9955,3942.9,3942.8,0.21724443]
[1761398742999,3.9955,3942.9,3942.8,0.00194443]
[1761398746802,3.9955,3942.9,3942.8,0.21724443]
[1761398747102,3.9955,3942.9,3942.8,0.00194443]
[1761398748704,3.9955,3942.9,3942.8,0.21724443]
[1761398748998,3.7656,3942.9,3942.8,0.70784443]
[1761398749202,3.9955,3942.9,3942.8,0.43344443]
[1761398752005,0.7877,3942.9,3942.8,0.43344443]
[1761398752902,0.7877,3942.9,3942.8,0.70784443]
[1761398754306,0.7877,3942.9,3942.8,0.43344443]
[1761398755714,0.7877,3942.9,3942.8,0.21724443]
[1761398759021,0.7877,3942.9,3942.8,0.00194443]
[1761398760714,1.69675811,3942.9,3942.8,0.00194443]
[1761398761111,42.95128717,3942.9,3942.8,0.00194443]
[1761398762215,41.5877,3942.9,3942.8,0.00194443]
[1761398765024,42.95128717,3942.9,3942.8,0.00194443]
[1761398765321,41.5877,3942.9,3942.8,0.00194443]
[1761398765922,49.5877,3942.9,3942.8,0.00194443]
[1761398769424,49.5877,3942.9,3941.7,6.444]
[1761398769425,0.2221,3941.8,3941.7,6.8901]
[1761398769728,0.3236,3941.8,3941.7,7.1661]
[1761398770521,0.32602471,3941.8,3941.7,7.16833195]
[1761398770827,0.54812471,3941.8,3941.7,7.16833195]
[1761398771932,0.54812471,3941.8,3941.7,0.72433195]
[1761398773421,0.32602471,3941.8,3941.7,0.72433195]
[1761398773731,0.00242471,3941.8,3941.7,0.72433195]
[1761398774222,0.32602471,3941.8,3941.7,0.72433195]
[1761398774630,0.00242471,3941.8,3941.7,0.72433195]
[1761398775230,0.32602471,3941.8,3941.7,0.72433195]
[1761398775530,0.54812471,3941.8,3941.7,9.69533195]
[1761398776226,0.54812471,3941.8,3941.7,0.72433195]
[1761398776535,0.54812471,3941.8,3941.7,9.69533195]
[1761398777016,0.32602471,3941.8,3941.7,9.69533195]
[1761398781828,0.54812471,3941.8,3941.7,9.69533195]
[1761398782626,0.54812471,3941.8,3941.7,9.69433195]
[1761398782936,0.54812471,3941.8,3941.7,0.72433195]
[1761398783232,0.77112471,3941.8,3941.7,0.00223195]
[1761398783421,0.77112471,3941.8,3941.7,8.97223195]
[1761398783731,0.77112471,3941.8,3941.7,0.00223195]
[1761398786928,41.57112471,3941.8,3941.7,0.00223195]
[1761398787330,42.47839905,3941.8,3941.7,0.00223195]
[1761398788230,41.57112471,3941.8,3941.7,0.00223195]
[1761398791241,42.47839905,3941.8,3941.7,0.00223195]
[1761398792239,41.57112471,3941.8,3941.7,0.00223195]
[1761398799740,41.57112471,3941.8,3941.7,0.22123195]
[1761398800243,41.57112471,3941.8,3941.7,0.00223195]
[1761398800842,0.77112471,3941.8,3941.7,0.00223195]
[1761398807342,1.67839905,3941.8,3941.7,0.00223195]
[1761398808347,4.88619905,3941.8,3941.7,0.00223195]
[1761398811440,3.97892471,3941.8,3941.7,0.00223195]
[1761398814351,5.34251188,3941.8,3941.7,0.00223195]
[1761398816750,46.14251188,3941.8,3941.7,0.00223195]
[1761398818048,44.77892471,3941.8,3941.7,0.00223195]
[1761398830257,0.1358,3941.0,3940.9,0.91211127]
[1761398830459,0.4416,3940.9,3940.6,0.91211127]
[1761398830760,0.3331,3940.1,3940.0,1.63341127]
[1761398831058,0.3331,3940.1,3940.0,0.7213]
[1761398831358,0.3331,3940.1,3940.0,0.7243131]
[1761398832755,3.2078,3940.2,3940.1,0.2782]
[1761398833063,3.5409,3940.2,3940.1,0.7213]
[1761398833255,3.763,3940.2,3940.1,0.7213]
[1761398835864,3.9825,3940.2,3940.1,0.7213]
[1761398836161,3.9825,3940.2,3940.1,0.4431]
[1761398836358,3.9825,3940.2,3940.1,0.2165]
[1761398838756,3.9825,3940.2,3940.0,0.0030131]
[1761398838757,3.6494,3940.2,3940.0,0.0030131]
[1761398838959,0.7747,3940.1,3940.0,0.0030131]
[1761398839857,0.7747,3940.1,3940.0,0.4461131]
[1761398840358,0.7747,3940.1,3940.0,0.2195131]
[1761398840656,0.7747,3940.1,3940.0,0.0030131]
[1761398842356,3.9825,3940.1,3940.0,0.0030131]
[1761398842757,3.9825,3940.1,3940.0,0.4461131]
[1761398844964,3.9825,3940.1,3940.0,0.7243131]
[1761398846471,3.9825,3940.1,3940.0,0.4461131]
[1761398847872,3.9825,3940.1,3940.0,0.2195131]
[1761398848069,3.9825,3940.1,3940.0,0.0030131]
[1761398848574,3.9825,3940.1,3940.0,0.2195131]
[1761398850883,3.9825,3940.1,3940.0,0.7243131]
[1761398851071,3.9825,3940.1,3940.0,0.4461131]
[1761398851987,3.9825,3940.1,3940.0,0.2195131]
[1761398852181,3.9825,3940.1,3940.0,0.0030131]
[1761398857888,3.9825,3940.1,3940.0,0.2195131]
[1761398858084,3.9825,3940.1,3940.0,0.7177131]
[1761398859694,3.9825,3940.1,3940.0,0.4400131]
[1761398860291,3.9825,3940.1,3940.0,0.0030131]
[1761398860592,3.9825,3940.1,3940.0,0.2169131]
[1761398861295,3.9825,3940.1,3940.0,0.4374131]
[1761398863790,0.5552,3940.1,3940.0,0.7151131]
[1761398864094,0.5695,3940.4,3940.3,0.7121]
[1761398864295,0.351,3940.4,3940.3,1.16886]
[1761398866798,0.351,3940.4,3940.3,10.13386]
[1761398867495,0.351,3940.4,3940.3,18.13386]
[1761398867696,0.5695,3940.6,3940.5,0.7121]
[1761398869299,3.2078,3940.7,3940.6,0.2777]
[1761398869498,0.351,3940.9,3940.7,0.2777]
[1761398869696,0.351,3940.9,3940.8,0.7121]
[1761398869890,0.351,3941.1,3940.8,0.8911]
[1761398870096,0.351,3941.1,3941.0,0.7121]
[1761398870805,0.5695,3941.1,3941.0,0.7121]
[1761398871102,0.8,3941.1,3941.0,0.7121]
[1761398872406,0.5695,3941.1,3941.0,1.16878]
[1761398872907,0.5695,3941.1,3941.0,10.13278]
[1761398874804,0.351,3941.4,3941.3,0.4916]
[1761398875103,0.5695,3941.4,3941.3,0.7121]
[1761398875503,0.8,3941.4,3941.3,0.4344]
[1761398875704,0.8,3941.4,3941.3,0.2139]
[1761398878305,0.351,3941.3,3941.0,9.1779]
[1761398878506,0.8,3941.1,3941.0,9.3984]
[1761398879307,0.8,3941.1,3941.0,9.6766]
[1761398880504,0.8,3941.1,3941.0,9.6746]
[1761398880702,0.449,3941.1,3941.0,8.962]
[1761398880898,0.775,3941.1,3941.0,9.4052]
[1761398881506,0.775,3941.1,3941.0,9.6834]
[1761398883008,0.5445,3941.1,3941.0,9.6834]
[1761398883603,0.326,3941.1,3941.0,9.6834]
[1761398885912,0.326,3941.1,3941.0,0.7214]
[1761398886102,0.326,3941.1,3941.0,9.6824]
[1761398886303,0.5398,3941.1,3941.0,9.6824]
[1761398888411,0.326,3941.1,3941.0,9.6824]
[1761398891515,0.1358,3941.5,3941.0,9.6824]
[1761398891516,0.3317,3941.6,3941.5,0.7389]
[1761398891816,0.3317,3941.6,3941.5,9.6999]
[1761398895216,0.5454,3941.6,3941.5,9.6999]
[1761398899121,0.3317,3941.6,3941.5,9.6999]
[1761398899921,0.3317,3941.7,3941.6,0.91731]
[1761398900321,0.3317,3941.7,3941.6,1.19551]
[1761398900719,0.5454,3941.7,3941.6,1.19551]
[1761398902422,0.3317,3941.7,3941.6,1.19551]
[1761398903419,0.5454,3941.7,3941.6,1.19551]
[1761398905126,0.7593,3941.7,3941.6,0.4607]
[1761398905324,0.00242471,3941.8,3941.3,0.2289]
[1761398905325,0.7593,3941.4,3941.3,0.2289]
[1761398905631,0.7593,3941.4,3941.3,9.6969]
[1761398906923,0.5454,3941.4,3941.3,9.6969]
[1761398907424,0.7593,3941.4,3941.3,9.4187]
[1761398908130,0.7593,3941.4,3941.3,9.6969]
[1761398909922,0.7593,3941.4,3941.3,9.4187]
[1761398911130,0.7593,3941.4,3941.3,10.60901127]
[1761398912529,0.5454,3941.4,3941.3,10.60901127]
[1761398913731,0.3317,3941.4,3941.3,10.60901127]
[1761398916233,0.5454,3941.4,3941.3,10.60901127]
[1761398916631,0.7593,3941.4,3941.3,10.32981127]
[1761398917235,0.7593,3941.4,3941.3,9.4177]
[1761398918431,0.7593,3941.4,3941.3,9.6954]
[1761398921935,0.7593,3941.4,3941.3,0.7384]
[1761398922137,0.7593,3941.4,3941.3,9.6944]
[1761398922437,0.7593,3941.4,3941.3,0.7384]
[1761398922733,0.7593,3941.4,3941.3,9.6944]
[1761398923834,0.7593,3941.4,3941.3,0.7384]
[1761398924034,0.7593,3941.4,3941.3,9.6944]
[1761398933042,0.5454,3941.4,3941.3,9.6944]
[1761398934344,0.5454,3941.4,3941.3,9.6934]
[1761398936341,0.5454,3941.4,3941.3,0.7384]
[1761398936542,0.5454,3941.4,3941.3,9.6934]
[1761398937544,0.3317,3941.4,3941.3,9.6934]
[1761398946551,0.3317,3941.4,3941.3,10.60551127]
[1761398947146,0.3317,3941.4,3941.3,9.6934]
[1761398948043,0.3317,3941.4,3941.3,10.60551127]
[1761398952053,3.2078,3941.6,3941.4,0.2781]
[1761398952260,3.2078,3941.6,3941.5,0.798]
[1761398952558,0.00242471,3941.8,3941.7,0.7323]
[1761398952559,0.32312471,3941.8,3941.7,0.7323]
[1761398952754,0.54962471,3941.8,3941.7,9.6853]
[1761398954863,3.75742471,3941.8,3941.7,9.6853]
[1761398959675,3.98242471,3941.8,3941.7,0.4542]
[1761398959880,3.98242471,3941.8,3941.7,7.519]
[1761398960578,0.7722,3941.7,3941.6,0.2354]
[1761398960776,0.7722,3941.7,3941.6,9.1874]
[1761398964677,0.7722,3941.7,3941.6,0.2354]
[1761398964879,0.7722,3941.7,3941.6,8.4564]
[1761398965180,0.7722,3941.7,3941.6,0.2354]
[1761398965373,0.7722,3941.7,3941.6,9.1864]
[1761398966979,0.3207,3941.6,3941.3,0.2354]
[1761398967185,0.7722,3941.4,3941.3,0.4542]
[1761398967481,0.7722,3941.4,3941.3,9.4052]
[1761398967680,0.7722,3941.4,3941.3,9.6833]
[1761398969583,0.7722,3941.4,3941.3,0.7323]
[1761398969778,0.7722,3941.4,3941.3,0.2354]
[1761398969986,0.7722,3941.4,3941.3,9.1864]
[1761398971787,0.7722,3941.4,3941.3,0.2354]
[1761398971976,0.7722,3941.4,3941.3,9.1864]
[1761398973577,0.7722,3941.4,3941.3,0.2354]
[1761398973887,0.7722,3941.1,3941.0,0.4542]
[1761398974287,0.7722,3941.1,3941.0,9.4042]
[1761398974886,0.7722,3941.1,3941.0,0.4542]
[1761398975083,0.7722,3941.1,3941.0,9.4042]
[1761398975282,0.7722,3941.1,3941.0,9.6823]
[1761398977993,0.7722,3941.1,3941.0,0.7323]
[1761398978290,0.7722,3941.1,3941.0,9.6823]
[1761398981990,0.7722,3941.1,3941.0,9.4042]
[1761398982503,0.7722,3941.1,3941.0,9.6825]
[1761398983095,0.7722,3941.1,3941.0,0.7325]
[1761398983296,0.7722,3941.1,3941.0,9.6825]
[1761398986399,0.7722,3941.1,3941.0,0.2354]
[1761398986592,0.5662,3940.7,3940.6,0.7218]
[1761398986792,0.5662,3940.7,3940.6,9.0798]
[1761398987195,0.7948,3940.7,3940.6,0.7218]
[1761398987391,0.7948,3940.7,3940.6,9.3925]
[1761398989695,0.7948,3940.4,3940.2,0.91211127]
[1761398989899,0.4485,3940.4,3940.3,9.3925]
[1761398990096,0.4485,3940.4,3940.3,9.6708]
[1761398990397,0.7948,3940.4,3940.3,9.6708]
[1761398990996,4.0026,3940.4,3940.3,9.6708]
[1761398991198,4.0026,3940.4,3940.3,9.3925]